[Event "*** Titled Tuesday Blitz"]
[Site "Chess.com"]
[Date "2020.11.24"]
[Round "3"]
[White "Taron_Shagbazyan"]
[Black "Chopper1905"]
[Result "1-0"]
[WhiteElo "2729"]
[BlackElo "2962"]
[TimeControl "180+1"]
[EndTime "10:43:37 PST"]
[Termination "Taron_Shagbazyan won by resignation"]

1. d4 {[%clk 0:03:00.9]} 1... d5 {[%clk 0:02:58.4]} 2. c4 {[%clk 0:02:58.9]}
2... c6 {[%clk 0:02:57.6]} 3. Nf3 {[%clk 0:02:58.3]} 3... Nf6 {[%clk 0:02:57.5]}
4. Nc3 {[%clk 0:02:57.8]} 4... e6 {[%clk 0:02:54.9]} 5. e3 {[%clk 0:02:56.8]}
5... Nbd7 {[%clk 0:02:54.7]} 6. Qc2 {[%clk 0:02:56.6]} 6... Bd6 {[%clk
0:02:54.4]} 7. Bd3 {[%clk 0:02:56]} 7... dxc4 {[%clk 0:02:54.1]} 8. Bxc4 {[%clk
0:02:56.9]} 8... O-O {[%clk 0:02:54.1]} 9. O-O {[%clk 0:02:56.9]} 9... b5 {[%clk
0:02:54.3]} 10. Be2 {[%clk 0:02:57.5]} 10... Bb7 {[%clk 0:02:50.2]} 11. Rd1
{[%clk 0:02:57.6]} 11... Qb8 {[%clk 0:02:46.4]} 12. e4 {[%clk 0:02:56]} 12... e5
{[%clk 0:02:46.1]} 13. g3 {[%clk 0:02:53.2]} 13... Re8 {[%clk 0:02:38.5]} 14.
dxe5 {[%clk 0:02:46.7]} 14... Nxe5 {[%clk 0:02:38.6]} 15. Bg5 {[%clk 0:02:46]}
15... Neg4 {[%clk 0:02:28.2]} 16. a3 {[%clk 0:02:12.6]} 16... Bc5 {[%clk
0:02:05]} 17. Rf1 {[%clk 0:02:11.9]} 17... Bb6 {[%clk 0:01:45.7]} 18. Rad1
{[%clk 0:02:06.5]} 18... a5 {[%clk 0:01:38.4]} 19. Bf4 {[%clk 0:02:02.3]} 19...
Qa7 {[%clk 0:01:37.2]} 20. Bd3 {[%clk 0:01:57.5]} 20... Nd7 {[%clk 0:01:22.5]}
21. e5 {[%clk 0:01:57.2]} 21... Ndxe5 {[%clk 0:01:18.6]} 22. Nxe5 {[%clk
0:01:54.8]} 22... Nxe5 {[%clk 0:01:19.5]} 23. Bxh7+ {[%clk 0:01:55]} 23... Kf8
{[%clk 0:01:18.6]} 24. Qf5 {[%clk 0:01:49.4]} 24... Bc8 {[%clk 0:01:01.7]} 25.
Qe4 {[%clk 0:01:32.6]} 25... f6 {[%clk 0:00:20.1]} 26. Bxe5 {[%clk 0:01:15.9]}
26... Rxe5 {[%clk 0:00:21]} 27. Qxc6 {[%clk 0:01:16]} 27... Qc7 {[%clk
0:00:19.9]} 28. Qxa8 {[%clk 0:01:10.4]} 28... Kf7 {[%clk 0:00:14.4]} 29. Nd5
{[%clk 0:01:08.9]} 29... Qc6 {[%clk 0:00:09.5]} 30. Qxc6 {[%clk 0:01:07.5]} 1-0

[Event "*** Titled Tuesday Blitz"]
[Site "Chess.com"]
[Date "2020.11.24"]
[Round "3"]
[White "BlackGod93"]
[Black "Manukyan_Artak"]
[Result "1-0"]
[WhiteElo "2177"]
[BlackElo "2347"]
[TimeControl "180+1"]
[EndTime "10:43:45 PST"]
[Termination "BlackGod93 won by resignation"]

1. d4 {[%clk 0:03:00]} 1... Nf6 {[%clk 0:02:58.9]} 2. Nf3 {[%clk 0:02:59.8]}
2... d5 {[%clk 0:02:59.1]} 3. c4 {[%clk 0:02:59.3]} 3... c6 {[%clk 0:02:58.7]}
4. Nbd2 {[%clk 0:02:59.3]} 4... Bg4 {[%clk 0:02:58.5]} 5. Ne5 {[%clk 0:02:52]}
5... Bh5 {[%clk 0:02:55.6]} 6. Qb3 {[%clk 0:02:49.9]} 6... Qb6 {[%clk
0:02:54.7]} 7. Qh3 {[%clk 0:02:50]} 7... e6 {[%clk 0:02:48.1]} 8. c5 {[%clk
0:02:41.4]} 8... Qa5 {[%clk 0:02:34.9]} 9. e3 {[%clk 0:02:33.3]} 9... b6 {[%clk
0:02:18.1]} 10. cxb6 {[%clk 0:02:23.4]} 10... axb6 {[%clk 0:02:17.5]} 11. Bd3
{[%clk 0:02:19.8]} 11... Nbd7 {[%clk 0:01:53.7]} 12. g4 {[%clk 0:02:14.6]} 12...
Nxe5 {[%clk 0:01:49.8]} 13. dxe5 {[%clk 0:02:13.8]} 13... Bxg4 {[%clk
0:01:48.8]} 14. Qg3 {[%clk 0:02:04.8]} 14... Ne4 {[%clk 0:01:25.7]} 15. Bxe4
{[%clk 0:01:59.3]} 15... dxe4 {[%clk 0:01:25.1]} 16. Qxg4 {[%clk 0:01:59.8]}
16... Qxe5 {[%clk 0:01:25.3]} 17. Qxe4 {[%clk 0:01:59.6]} 17... Qc7 {[%clk
0:01:25.4]} 18. O-O {[%clk 0:01:55.1]} 18... Bd6 {[%clk 0:01:24.8]} 19. Nf3
{[%clk 0:01:54.8]} 19... O-O {[%clk 0:01:23.2]} 20. Bd2 {[%clk 0:01:54.7]} 20...
b5 {[%clk 0:01:22.1]} 21. a3 {[%clk 0:01:53.5]} 21... Ra4 {[%clk 0:01:22]} 22.
b4 {[%clk 0:01:51.2]} 22... Rfa8 {[%clk 0:01:19.9]} 23. Rac1 {[%clk 0:01:48.5]}
23... Rxa3 {[%clk 0:01:17]} 24. Rxc6 {[%clk 0:01:48.2]} 24... Qb8 {[%clk
0:01:17.2]} 25. Rfc1 {[%clk 0:01:42.3]} 25... Ra1 {[%clk 0:01:16.9]} 26. Rxa1
{[%clk 0:01:36.4]} 26... Rxa1+ {[%clk 0:01:16]} 27. Kg2 {[%clk 0:01:37.3]} 27...
Bf8 {[%clk 0:01:16]} 28. Bc3 {[%clk 0:01:35.9]} 28... Rd1 {[%clk 0:01:00.9]} 29.
Ng5 {[%clk 0:01:33.5]} 29... g6 {[%clk 0:00:47.3]} 30. Qh4 {[%clk 0:01:33.7]}
30... h5 {[%clk 0:00:46.1]} 31. Ne4 {[%clk 0:01:33.5]} 31... Bg7 {[%clk
0:00:35.2]} 32. Bxg7 {[%clk 0:01:30.6]} 32... Kxg7 {[%clk 0:00:35.5]} 33. Qf6+
{[%clk 0:01:31.1]} 33... Kg8 {[%clk 0:00:35.8]} 34. Ng5 {[%clk 0:01:25.9]} 34...
Qb7 {[%clk 0:00:35.5]} 35. e4 {[%clk 0:01:22]} 35... Rd7 {[%clk 0:00:27.1]} 36.
Rc3 {[%clk 0:01:13.7]} 36... Rc7 {[%clk 0:00:26]} 37. Qd8+ {[%clk 0:01:10.1]}
1-0

[Event "*** Titled Tuesday Blitz"]
[Site "Chess.com"]
[Date "2020.11.24"]
[Round "3"]
[White "mr_gustavo"]
[Black "tlomigtlis"]
[Result "0-1"]
[WhiteElo "2405"]
[BlackElo "2576"]
[TimeControl "180+1"]
[EndTime "10:43:47 PST"]
[Termination "tlomigtlis won on time"]

1. d4 {[%clk 0:03:00.9]} 1... d5 {[%clk 0:02:59.8]} 2. c4 {[%clk 0:03:00.4]}
2... c6 {[%clk 0:02:59.3]} 3. Nf3 {[%clk 0:02:50]} 3... Nf6 {[%clk 0:02:59.3]}
4. e3 {[%clk 0:02:50.1]} 4... Bf5 {[%clk 0:02:57.8]} 5. Nc3 {[%clk 0:02:49.2]}
5... e6 {[%clk 0:02:57.6]} 6. Nh4 {[%clk 0:02:49.4]} 6... Be4 {[%clk 0:02:58.1]}
7. f3 {[%clk 0:02:48.8]} 7... Bg6 {[%clk 0:02:58.5]} 8. Qb3 {[%clk 0:02:49.3]}
8... Qc7 {[%clk 0:02:58.2]} 9. Nxg6 {[%clk 0:02:47.8]} 9... hxg6 {[%clk
0:02:59.1]} 10. g3 {[%clk 0:02:47.9]} 10... Nbd7 {[%clk 0:02:59]} 11. Bg2 {[%clk
0:02:47.8]} 11... Bd6 {[%clk 0:02:59.1]} 12. f4 {[%clk 0:02:41.2]} 12... g5
{[%clk 0:02:47.8]} 13. Bd2 {[%clk 0:02:33]} 13... gxf4 {[%clk 0:02:46.4]} 14.
exf4 {[%clk 0:02:33.9]} 14... dxc4 {[%clk 0:02:21.6]} 15. Qxc4 {[%clk
0:02:34.8]} 15... Nb6 {[%clk 0:02:19.2]} 16. Qe2 {[%clk 0:02:26.1]} 16... O-O-O
{[%clk 0:02:15.5]} 17. O-O-O {[%clk 0:02:24.9]} 17... Nfd5 {[%clk 0:02:11.4]}
18. Nxd5 {[%clk 0:02:22.2]} 18... cxd5+ {[%clk 0:02:08.2]} 19. Kb1 {[%clk
0:02:21.5]} 19... Kb8 {[%clk 0:02:09]} 20. Rc1 {[%clk 0:02:21.4]} 20... Qd7
{[%clk 0:02:08.4]} 21. b3 {[%clk 0:02:15.4]} 21... Rc8 {[%clk 0:02:06.9]} 22.
Ba5 {[%clk 0:02:04.7]} 22... Ba3 {[%clk 0:02:03.7]} 23. Rxc8+ {[%clk 0:02:03.4]}
23... Rxc8 {[%clk 0:02:04.6]} 24. Bxb6 {[%clk 0:01:31.2]} 24... axb6 {[%clk
0:02:03]} 25. Qd2 {[%clk 0:01:30.1]} 25... Qc7 {[%clk 0:02:00.4]} 26. Rf1 {[%clk
0:01:13.5]} 26... Qc6 {[%clk 0:01:58.2]} 27. g4 {[%clk 0:01:09.1]} 27... g6
{[%clk 0:01:52.3]} 28. h4 {[%clk 0:01:08.4]} 28... Qb5 {[%clk 0:01:42.9]} 29. h5
{[%clk 0:01:03.2]} 29... Bb4 {[%clk 0:01:41.8]} 30. Qd1 {[%clk 0:00:38.6]} 30...
Qa5 {[%clk 0:01:34.1]} 31. h6 {[%clk 0:00:31.8]} 31... Ba3 {[%clk 0:01:26.3]}
32. Rf3 {[%clk 0:00:11.5]} 32... Qb5 {[%clk 0:01:10.5]} 33. h7 {[%clk
0:00:07.7]} 33... Qe2 {[%clk 0:01:06.6]} 0-1

[Event "*** Titled Tuesday Blitz"]
[Site "Chess.com"]
[Date "2020.11.24"]
[Round "3"]
[White "TigrVShlyape"]
[Black "EvgenyRomanov"]
[Result "1-0"]
[WhiteElo "2815"]
[BlackElo "2595"]
[TimeControl "180+1"]
[EndTime "10:43:48 PST"]
[Termination "TigrVShlyape won by checkmate"]

1. e4 {[%clk 0:03:00.9]} 1... e5 {[%clk 0:02:58.6]} 2. Nf3 {[%clk 0:03:00.6]}
2... Nc6 {[%clk 0:02:59.3]} 3. Bb5 {[%clk 0:03:00.4]} 3... a6 {[%clk 0:02:59]}
4. Ba4 {[%clk 0:03:00.4]} 4... Nf6 {[%clk 0:02:59.1]} 5. O-O {[%clk 0:03:00.1]}
5... Be7 {[%clk 0:02:59.2]} 6. Re1 {[%clk 0:02:59.4]} 6... b5 {[%clk 0:02:59.1]}
7. Bb3 {[%clk 0:02:59.8]} 7... d6 {[%clk 0:02:59.6]} 8. c3 {[%clk 0:03:00.2]}
8... O-O {[%clk 0:03:00]} 9. d4 {[%clk 0:03:00.6]} 9... Bg4 {[%clk 0:02:57]} 10.
d5 {[%clk 0:03:00]} 10... Na5 {[%clk 0:02:56]} 11. Bc2 {[%clk 0:03:00.5]} 11...
c6 {[%clk 0:02:55.8]} 12. h3 {[%clk 0:03:00.5]} 12... Bh5 {[%clk 0:02:51.5]} 13.
dxc6 {[%clk 0:03:00.6]} 13... Qc7 {[%clk 0:02:50.5]} 14. Nbd2 {[%clk 0:03:01]}
14... Qxc6 {[%clk 0:02:48.3]} 15. Nf1 {[%clk 0:03:00.7]} 15... Rfd8 {[%clk
0:02:40.3]} 16. Ng3 {[%clk 0:02:59.2]} 16... Bg6 {[%clk 0:02:39.8]} 17. Nh4
{[%clk 0:02:55.9]} 17... d5 {[%clk 0:02:23.6]} 18. Nxg6 {[%clk 0:02:53.7]} 18...
hxg6 {[%clk 0:02:22.1]} 19. exd5 {[%clk 0:02:52.2]} 19... Rxd5 {[%clk
0:02:16.7]} 20. Qe2 {[%clk 0:02:47.9]} 20... Re8 {[%clk 0:02:05.8]} 21. Bg5
{[%clk 0:02:23.9]} 21... Qc7 {[%clk 0:01:56.3]} 22. Rad1 {[%clk 0:02:20.7]}
22... Rxd1 {[%clk 0:01:53.7]} 23. Rxd1 {[%clk 0:02:19.5]} 23... Nc4 {[%clk
0:01:52.9]} 24. Bc1 {[%clk 0:02:15.8]} 24... Bc5 {[%clk 0:01:44]} 25. Ne4 {[%clk
0:02:13.6]} 25... Nxe4 {[%clk 0:01:26.6]} 26. Bxe4 {[%clk 0:02:12.9]} 26... Rd8
{[%clk 0:01:26.3]} 27. Rxd8+ {[%clk 0:02:07.8]} 27... Qxd8 {[%clk 0:01:25.5]}
28. a4 {[%clk 0:02:01.7]} 28... Qd7 {[%clk 0:01:13.7]} 29. axb5 {[%clk
0:02:00.6]} 29... axb5 {[%clk 0:01:14.6]} 30. b3 {[%clk 0:01:54.3]} 30... Nb6
{[%clk 0:00:58.5]} 31. Bd2 {[%clk 0:01:43.2]} 31... Nc8 {[%clk 0:00:27.6]} 32.
Bd3 {[%clk 0:01:31.1]} 32... Na7 {[%clk 0:00:23.2]} 33. Be1 {[%clk 0:01:21.8]}
33... f5 {[%clk 0:00:19]} 34. b4 {[%clk 0:01:19.3]} 34... Bb6 {[%clk 0:00:18.7]}
35. c4 {[%clk 0:01:19.2]} 35... bxc4 {[%clk 0:00:18.8]} 36. Bxc4+ {[%clk
0:01:18.9]} 36... Kh7 {[%clk 0:00:17.7]} 37. Bb3 {[%clk 0:01:12.6]} 37... Nc6
{[%clk 0:00:16.4]} 38. Qc4 {[%clk 0:01:11.7]} 38... Qe8 {[%clk 0:00:16]} 39.
Qh4# {[%clk 0:01:10.8]} 1-0

[Event "*** Titled Tuesday Blitz"]
[Site "Chess.com"]
[Date "2020.11.24"]
[Round "3"]
[White "niki_2003"]
[Black "chito89"]
[Result "0-1"]
[WhiteElo "1996"]
[BlackElo "2728"]
[TimeControl "180+1"]
[EndTime "10:43:49 PST"]
[Termination "chito89 won by resignation"]

1. d4 {[%clk 0:02:59]} 1... Nf6 {[%clk 0:02:59.8]} 2. c4 {[%clk 0:02:58.3]} 2...
g6 {[%clk 0:02:59.6]} 3. Nc3 {[%clk 0:02:58.7]} 3... d5 {[%clk 0:02:59.2]} 4.
cxd5 {[%clk 0:02:57.5]} 4... Nxd5 {[%clk 0:03:00.1]} 5. e4 {[%clk 0:02:58]} 5...
Nxc3 {[%clk 0:02:59.3]} 6. bxc3 {[%clk 0:02:57.8]} 6... Bg7 {[%clk 0:02:59.3]}
7. Be3 {[%clk 0:02:55.3]} 7... c5 {[%clk 0:02:58.6]} 8. Bc4 {[%clk 0:02:55.5]}
8... Nc6 {[%clk 0:02:48.4]} 9. Ne2 {[%clk 0:02:53.8]} 9... O-O {[%clk 0:02:37]}
10. O-O {[%clk 0:02:52.8]} 10... Bg4 {[%clk 0:02:33.2]} 11. f3 {[%clk
0:02:50.9]} 11... cxd4 {[%clk 0:02:33.4]} 12. cxd4 {[%clk 0:02:47.1]} 12... Na5
{[%clk 0:02:32.8]} 13. Bd5 {[%clk 0:02:20]} 13... Bd7 {[%clk 0:02:22.2]} 14. Bd2
{[%clk 0:02:11.1]} 14... Bc6 {[%clk 0:02:16.5]} 15. Bxa5 {[%clk 0:02:07.4]}
15... Qxa5 {[%clk 0:02:16.2]} 16. Bxc6 {[%clk 0:01:48.3]} 16... bxc6 {[%clk
0:02:14.7]} 17. e5 {[%clk 0:01:45.6]} 17... c5 {[%clk 0:02:07.1]} 18. f4 {[%clk
0:01:41.4]} 18... cxd4 {[%clk 0:02:05.8]} 19. Qxd4 {[%clk 0:01:41.3]} 19... Rfd8
{[%clk 0:02:01.6]} 20. Qe4 {[%clk 0:01:35.8]} 20... e6 {[%clk 0:01:53.9]} 21.
Rad1 {[%clk 0:01:21.4]} 21... h5 {[%clk 0:01:49.7]} 22. Rd6 {[%clk 0:01:20.2]}
22... Rxd6 {[%clk 0:01:41]} 23. exd6 {[%clk 0:01:11.6]} 23... Rd8 {[%clk
0:01:39]} 24. Rd1 {[%clk 0:01:09.8]} 24... Qc5+ {[%clk 0:01:37.7]} 25. Kh1
{[%clk 0:00:56.9]} 25... Rxd6 {[%clk 0:01:37.1]} 26. Nc3 {[%clk 0:00:49.5]}
26... Bxc3 {[%clk 0:01:26.8]} 27. Rc1 {[%clk 0:00:45.3]} 27... Qd4 {[%clk
0:01:12.4]} 28. Qa8+ {[%clk 0:00:34.6]} 28... Kg7 {[%clk 0:01:11.5]} 29. h3
{[%clk 0:00:33.9]} 29... Qxf4 {[%clk 0:01:04]} 30. Rb1 {[%clk 0:00:29.4]} 30...
Be5 {[%clk 0:01:00.3]} 0-1

[Event "*** Titled Tuesday Blitz"]
[Site "Chess.com"]
[Date "2020.11.24"]
[Round "3"]
[White "korbul"]
[Black "Tsyhanchuk_Stanislav"]
[Result "1-0"]
[WhiteElo "2557"]
[BlackElo "2268"]
[TimeControl "180+1"]
[EndTime "10:43:52 PST"]
[Termination "korbul won on time"]

1. e4 {[%clk 0:03:00.9]} 1... c5 {[%clk 0:03:00]} 2. Nf3 {[%clk 0:03:00.5]} 2...
Nc6 {[%clk 0:03:00.2]} 3. Bc4 {[%clk 0:02:59.4]} 3... e6 {[%clk 0:02:59.7]} 4.
d3 {[%clk 0:02:58.7]} 4... a6 {[%clk 0:02:58.8]} 5. c3 {[%clk 0:02:57.8]} 5...
b5 {[%clk 0:02:58.4]} 6. Bb3 {[%clk 0:02:57.6]} 6... d5 {[%clk 0:02:56.4]} 7. e5
{[%clk 0:02:52.2]} 7... Qc7 {[%clk 0:02:54.8]} 8. Bf4 {[%clk 0:02:47.9]} 8...
Nge7 {[%clk 0:02:48.3]} 9. O-O {[%clk 0:02:45.4]} 9... Ng6 {[%clk 0:02:46.5]}
10. Bg3 {[%clk 0:02:44.3]} 10... Be7 {[%clk 0:02:43.1]} 11. Re1 {[%clk
0:02:42.4]} 11... h5 {[%clk 0:02:42.5]} 12. h3 {[%clk 0:02:40.2]} 12... h4
{[%clk 0:02:41.5]} 13. Bh2 {[%clk 0:02:40.3]} 13... Bb7 {[%clk 0:02:37.2]} 14.
a3 {[%clk 0:02:40.2]} 14... Rd8 {[%clk 0:02:25.6]} 15. d4 {[%clk 0:02:40]} 15...
cxd4 {[%clk 0:02:22.7]} 16. cxd4 {[%clk 0:02:39.5]} 16... Qb6 {[%clk 0:02:20.9]}
17. Nc3 {[%clk 0:02:35.8]} 17... Na5 {[%clk 0:02:17.5]} 18. Bc2 {[%clk
0:02:35.2]} 18... Nc4 {[%clk 0:02:06.1]} 19. Bxg6 {[%clk 0:02:31.8]} 19... fxg6
{[%clk 0:01:49.3]} 20. Ne2 {[%clk 0:02:26.7]} 20... g5 {[%clk 0:01:17.8]} 21.
Qd3 {[%clk 0:02:13.1]} 21... Kf7 {[%clk 0:01:14.6]} 22. b3 {[%clk 0:02:09]}
22... Na5 {[%clk 0:01:09.9]} 23. Qe3 {[%clk 0:02:07.6]} 23... Kg6 {[%clk
0:00:51.2]} 24. Nd2 {[%clk 0:01:33.2]} 24... Rdf8 {[%clk 0:00:32]} 25. f4 {[%clk
0:01:31.3]} 25... Qd8 {[%clk 0:00:13.8]} 26. Nf3 {[%clk 0:01:27]} 26... Nc6
{[%clk 0:00:05.3]} 27. Rf1 {[%clk 0:01:16.4]} 27... Nb8 {[%clk 0:00:02.1]} 28.
fxg5 {[%clk 0:01:11.1]} 28... Bxg5 {[%clk 0:00:01.9]} 29. Bf4 {[%clk 0:01:11.1]}
29... Bxf4 {[%clk 0:00:01.7]} 30. Nxf4+ {[%clk 0:01:10.7]} 30... Kf7 {[%clk
0:00:01.3]} 31. Qd3 {[%clk 0:01:05.8]} 1-0

[Event "*** Titled Tuesday Blitz"]
[Site "Chess.com"]
[Date "2020.11.24"]
[Round "3"]
[White "Kotofeyca"]
[Black "Kapibara_Warri0r"]
[Result "1-0"]
[WhiteElo "2411"]
[BlackElo "2172"]
[TimeControl "180+1"]
[EndTime "10:43:52 PST"]
[Termination "Kotofeyca won on time"]

1. d4 {[%clk 0:02:57.4]} 1... Nf6 {[%clk 0:02:59.8]} 2. c4 {[%clk 0:02:57.2]}
2... g6 {[%clk 0:03:00.2]} 3. f3 {[%clk 0:02:56.7]} 3... Bg7 {[%clk 0:03:00.3]}
4. e4 {[%clk 0:02:56.9]} 4... d6 {[%clk 0:02:59.9]} 5. Nc3 {[%clk 0:02:57.8]}
5... O-O {[%clk 0:03:00]} 6. Be3 {[%clk 0:02:58.4]} 6... Nc6 {[%clk 0:02:57.7]}
7. Nge2 {[%clk 0:02:58.4]} 7... a6 {[%clk 0:02:57.9]} 8. a3 {[%clk 0:02:58.7]}
8... e5 {[%clk 0:02:51.8]} 9. d5 {[%clk 0:02:58.7]} 9... Nd4 {[%clk 0:02:51.9]}
10. Nxd4 {[%clk 0:02:58.5]} 10... exd4 {[%clk 0:02:52.8]} 11. Bxd4 {[%clk
0:02:59.2]} 11... c5 {[%clk 0:02:49.1]} 12. dxc6 {[%clk 0:02:55.9]} 12... bxc6
{[%clk 0:02:50]} 13. Be2 {[%clk 0:02:55.9]} 13... c5 {[%clk 0:02:46.7]} 14. Be3
{[%clk 0:02:51.5]} 14... Qb6 {[%clk 0:02:28.7]} 15. Rb1 {[%clk 0:02:45]} 15...
Nd7 {[%clk 0:02:25.1]} 16. Qd2 {[%clk 0:02:40.5]} 16... Bd4 {[%clk 0:02:09.8]}
17. Nd5 {[%clk 0:02:33.4]} 17... Qb3 {[%clk 0:01:33.2]} 18. Bxd4 {[%clk
0:02:29.6]} 18... cxd4 {[%clk 0:01:34.1]} 19. Qxd4 {[%clk 0:02:27.8]} 19... f6
{[%clk 0:01:27.4]} 20. Nc7 {[%clk 0:02:04.2]} 20... Rb8 {[%clk 0:01:10.6]} 21.
Qxd6 {[%clk 0:02:02.3]} 21... Qc2 {[%clk 0:00:58.1]} 22. Qd3 {[%clk 0:01:52.9]}
22... Qa4 {[%clk 0:00:42.3]} 23. O-O {[%clk 0:01:41.1]} 23... Ne5 {[%clk
0:00:41.7]} 24. Qc3 {[%clk 0:01:36.9]} 24... Qc6 {[%clk 0:00:30.3]} 25. Nd5
{[%clk 0:01:35.3]} 25... Qc5+ {[%clk 0:00:29.3]} 26. Kh1 {[%clk 0:01:35.5]}
26... Be6 {[%clk 0:00:28.7]} 27. b4 {[%clk 0:01:35.3]} 27... Qa7 {[%clk
0:00:27.3]} 28. c5 {[%clk 0:01:32.2]} 28... Bxd5 {[%clk 0:00:26.3]} 29. exd5
{[%clk 0:01:31.8]} 29... Qd7 {[%clk 0:00:26.2]} 30. d6 {[%clk 0:01:29.8]} 30...
Rfe8 {[%clk 0:00:23.9]} 31. Bc4+ {[%clk 0:01:28.3]} 31... Kg7 {[%clk 0:00:24.4]}
32. Rfe1 {[%clk 0:01:25.5]} 32... Qf5 {[%clk 0:00:18.3]} 33. Bxa6 {[%clk
0:01:21.4]} 33... Nc6 {[%clk 0:00:09]} 34. Bf1 {[%clk 0:01:17.1]} 34... Ne5
{[%clk 0:00:03.5]} 35. c6 {[%clk 0:01:13.6]} 1-0

[Event "*** Titled Tuesday Blitz"]
[Site "Chess.com"]
[Date "2020.11.24"]
[Round "3"]
[White "northridgehawk"]
[Black "BegmuratovKh2010"]
[Result "1-0"]
[WhiteElo "2313"]
[BlackElo "2501"]
[TimeControl "180+1"]
[EndTime "10:43:56 PST"]
[Termination "northridgehawk won by resignation"]

1. e4 {[%clk 0:02:57.7]} 1... e5 {[%clk 0:02:58.8]} 2. Nf3 {[%clk 0:02:57]} 2...
Nc6 {[%clk 0:02:59.1]} 3. Bb5 {[%clk 0:02:57.3]} 3... Nf6 {[%clk 0:02:58.8]} 4.
d3 {[%clk 0:02:57]} 4... Bc5 {[%clk 0:02:54.7]} 5. O-O {[%clk 0:02:56.5]} 5...
Qe7 {[%clk 0:02:50.8]} 6. c3 {[%clk 0:02:55.5]} 6... a6 {[%clk 0:02:39.4]} 7.
Ba4 {[%clk 0:02:54.9]} 7... b5 {[%clk 0:02:38]} 8. Bc2 {[%clk 0:02:54.4]} 8...
d6 {[%clk 0:02:36.1]} 9. d4 {[%clk 0:02:52.8]} 9... Bb6 {[%clk 0:02:35.4]} 10.
Bg5 {[%clk 0:02:43.5]} 10... h6 {[%clk 0:02:33.9]} 11. Bh4 {[%clk 0:02:43.5]}
11... O-O {[%clk 0:02:28.5]} 12. Re1 {[%clk 0:02:39.8]} 12... Bg4 {[%clk
0:02:13.5]} 13. d5 {[%clk 0:02:39.1]} 13... Nb8 {[%clk 0:02:09.7]} 14. h3 {[%clk
0:02:39.1]} 14... Bh5 {[%clk 0:02:06.7]} 15. g4 {[%clk 0:02:39.2]} 15... Bg6
{[%clk 0:02:06.2]} 16. Nbd2 {[%clk 0:02:39.3]} 16... Nbd7 {[%clk 0:02:04.8]} 17.
Nf1 {[%clk 0:02:30.1]} 17... a5 {[%clk 0:01:41.9]} 18. Ng3 {[%clk 0:02:28.1]}
18... b4 {[%clk 0:01:34]} 19. Qe2 {[%clk 0:02:25.1]} 19... bxc3 {[%clk
0:01:32.2]} 20. bxc3 {[%clk 0:02:26]} 20... a4 {[%clk 0:01:25.9]} 21. Kh2 {[%clk
0:02:26.1]} 21... Nc5 {[%clk 0:01:21.3]} 22. Rg1 {[%clk 0:02:10.1]} 22... a3
{[%clk 0:01:11.1]} 23. g5 {[%clk 0:02:05.8]} 23... hxg5 {[%clk 0:01:01.5]} 24.
Bxg5 {[%clk 0:02:00.8]} 24... Na4 {[%clk 0:01:00.7]} 25. Nh4 {[%clk 0:01:58.7]}
25... Nxc3 {[%clk 0:00:56.7]} 26. Qf3 {[%clk 0:01:58.6]} 26... Ncxd5 {[%clk
0:00:35.3]} 27. Ngf5 {[%clk 0:01:56.9]} 27... Qd7 {[%clk 0:00:24]} 28. exd5
{[%clk 0:01:54.7]} 28... Nh7 {[%clk 0:00:20.9]} 29. Ne7+ {[%clk 0:01:50.9]}
29... Qxe7 {[%clk 0:00:17.2]} 30. Bxe7 {[%clk 0:01:51.8]} 30... Bxc2 {[%clk
0:00:17]} 31. Bxf8 {[%clk 0:01:48.6]} 31... Rxf8 {[%clk 0:00:17.9]} 32. Rac1
{[%clk 0:01:42.6]} 32... Ba4 {[%clk 0:00:13.9]} 33. Qg4 {[%clk 0:01:40.7]} 33...
g5 {[%clk 0:00:11.9]} 34. Qh5 {[%clk 0:01:37.1]} 34... Bxf2 {[%clk 0:00:06.7]}
35. Rxg5+ {[%clk 0:01:35.3]} 35... Kh8 {[%clk 0:00:06.8]} 36. Rf5 {[%clk
0:01:33]} 36... Be3 {[%clk 0:00:06.3]} 37. Ng6+ {[%clk 0:01:31.1]} 37... fxg6
{[%clk 0:00:05.1]} 38. Rxf8+ {[%clk 0:01:32]} 38... Kg7 {[%clk 0:00:05.2]} 39.
Rxc7+ {[%clk 0:01:31.3]} 39... Kxf8 {[%clk 0:00:04.1]} 40. Qxh7 {[%clk
0:01:31.4]} 40... Bf4+ {[%clk 0:00:04.5]} 41. Kg2 {[%clk 0:01:31.3]} 1-0

[Event "*** Titled Tuesday Blitz"]
[Site "Chess.com"]
[Date "2020.11.24"]
[Round "3"]
[White "anon569"]
[Black "Trovita84"]
[Result "0-1"]
[WhiteElo "2290"]
[BlackElo "2000"]
[TimeControl "180+1"]
[EndTime "10:43:57 PST"]
[Termination "Trovita84 won on time"]

1. e4 {[%clk 0:03:00.9]} 1... d6 {[%clk 0:02:58.7]} 2. d4 {[%clk 0:02:58.8]}
2... Nf6 {[%clk 0:02:59]} 3. Nc3 {[%clk 0:02:57.8]} 3... g6 {[%clk 0:02:57.3]}
4. Nf3 {[%clk 0:02:55.9]} 4... Bg7 {[%clk 0:02:57.3]} 5. Be2 {[%clk 0:02:54.2]}
5... O-O {[%clk 0:02:52]} 6. O-O {[%clk 0:02:52.3]} 6... c5 {[%clk 0:02:52.3]}
7. dxc5 {[%clk 0:02:43]} 7... dxc5 {[%clk 0:02:48.8]} 8. Qxd8 {[%clk 0:02:42.7]}
8... Rxd8 {[%clk 0:02:49.1]} 9. Be3 {[%clk 0:02:43.3]} 9... b6 {[%clk
0:02:46.4]} 10. Rad1 {[%clk 0:02:41.6]} 10... Rxd1 {[%clk 0:02:39]} 11. Rxd1
{[%clk 0:02:40.2]} 11... Bb7 {[%clk 0:02:39.5]} 12. Rd8+ {[%clk 0:02:29.9]}
12... Bf8 {[%clk 0:02:34.9]} 13. e5 {[%clk 0:01:41.3]} 13... Ng4 {[%clk
0:02:22.2]} 14. Bf4 {[%clk 0:01:29.9]} 14... Nc6 {[%clk 0:02:14.5]} 15. Rd7
{[%clk 0:01:29.4]} 15... Bc8 {[%clk 0:02:11.6]} 16. Rc7 {[%clk 0:01:28.7]} 16...
Nb4 {[%clk 0:02:05.7]} 17. Nd2 {[%clk 0:00:44.1]} 17... Be6 {[%clk 0:01:57.5]}
18. h3 {[%clk 0:00:23.5]} 18... Nh6 {[%clk 0:01:53.6]} 19. Bf3 {[%clk 0:00:16]}
19... Rd8 {[%clk 0:01:49]} 20. Rxa7 {[%clk 0:00:15.7]} 20... Nxc2 {[%clk
0:01:47]} 21. Rb7 {[%clk 0:00:11.6]} 21... Nf5 {[%clk 0:01:38.8]} 22. Be4 {[%clk
0:00:11.6]} 22... Ncd4 {[%clk 0:01:37.3]} 23. Rxb6 {[%clk 0:00:10.6]} 23... Bg7
{[%clk 0:01:32.9]} 24. g4 {[%clk 0:00:10.3]} 24... Nh6 {[%clk 0:01:26.5]} 25.
Kg2 {[%clk 0:00:09.2]} 25... f5 {[%clk 0:01:13.8]} 26. gxf5 {[%clk 0:00:02.1]}
26... Bxf5 {[%clk 0:01:10.9]} 27. Rb7 {[%clk 0:00:02.3]} 27... Bxe4+ {[%clk
0:01:09.5]} 28. Ndxe4 {[%clk 0:00:02.7]} 28... Nhf5 {[%clk 0:01:09.6]} 29. Ng5
{[%clk 0:00:01.8]} 29... Nh4+ {[%clk 0:01:04]} 30. Kg3 {[%clk 0:00:01.1]} 30...
Ndf5+ {[%clk 0:01:02]} 0-1